[Event "CIS Master Groups 2024"]
[Site "Vasto"]
[Date "2024.04.08"]
[Round "1.1"]
[White "Jianu, Vlad-Cristian"]
[Black "Predke, Alexandr"]
[Result "0-1"]
[ECO "A53"]
[WhiteElo "2491"]
[BlackElo "2673"]
[Annotator "TA"]
[PlyCount "80"]
[EventDate "2024.04.07"]
[EventType "team-tourn"]
[EventCountry "ITA"]
[SourceTitle "playchess.com"]
[Source "ChessBase"]
[SourceQuality "1"]
[TimeControl "40/5400+30:900+30"]

{[%evp 9,80,36,53,47,49,33,43,41,47,47,43,39,47,36,46,33,35,22,43,21,19,13,3,4,0,6,19,0,0,0,0,0,0,-18,0,0,0,0,0,-18,-10,-6,-7,-149,-21,-16,-6,-39,-42,-33,-28,-72,-72,-82,-77,-251,-259,-256,-244,-395,-395,-392,-388,-585,-585,-582,-582,-655,-652,-656,-640,-628,-619]} 1. Nf3 {[%emt 0:00:03]} Nf6 {[%emt 0:02:39]} 2. c4 {[%emt 0:00:05]} d6 {[%emt 0:01:09]} 3. d4 {[%emt 0:02:22]} Bg4 {[%emt 0:01:19][%cal Bc8g4,Bg4h5,Bh5g6][%mdl 32]} 4. Nc3 {[%emt 0:02:34]} Nbd7 {[%emt 0:09:20]} 5. e3 {[%emt 0:09:41]} e6 {[%emt 0:09:17][%cal Be7e6,Be6e5][%mdl 32]} 6. h3 {[%emt 0:08:40]} Bh5 {[%emt 0:00:28]} 7. Be2 {[%emt 0:04:20]} c6 {[%emt 0:05:14]} 8. e4 {[%emt 0:06:23] White is slightly better.} Bg6 {[%emt 0:06:21]} 9. Bd3 {[%emt 0:01:03]} e5 {[%emt 0:04:50]} 10. Be3 {[%emt 0:07:43]} Be7 {[%emt 0:05:10]} 11. O-O {[%emt 0:01:39]} O-O {[%emt 0:05:06]} 12. Re1 {[%emt 0:02:02]} a6 {[%emt 0:01:08]} 13. Rc1 {[%emt 0:03:17]} b5 {[%emt 0:05:46]} 14. cxb5 {[%emt 0:06:05]} (14. Qc2 $5) 14... axb5 {[%emt 0:00:03]} 15. a3 {[%emt 0:03:58]} Qb8 {[%emt 0:00:22]} 16. Nh4 {[%emt 0:08:07]} b4 {[%emt 0:04:43]} 17. Nxg6 {[%emt 0:00:40]} hxg6 {[%emt 0:00:08]} 18. axb4 {[%emt 0:04:57]} Qxb4 {[%emt 0:00:38]} 19. Ne2 {[%emt 0:01:22]} Rfc8 {[%emt 0:02:19]} 20. Qd2 {[%emt 0:03:33]} Rab8 {[%emt 0:05:27]} 21. Rc2 {[%emt 0:02:51]} c5 {[%emt 0:03:35]} 22. Qxb4 {[%emt 0:05:48]} Rxb4 {[%emt 0:00:12]} 23. Bd2 {[%emt 0:00:31]} Rbb8 {[%emt 0:02:27]} 24. dxc5 {[%emt 0:03:28]} Nxc5 {[%emt 0:01:35][%cal Bd7c5,Bc5a4,Ba4b2][%mdl 32]} 25. Nc1 {[%emt 0:01:15]} Bd8 {[%emt 0:00:56]} 26. Kf1 {[%emt 0:03:52]} (26. b3 $11) 26... Rc7 {[%emt 0:02:33]} (26... Nxd3 27. Rxc8 Rxc8 28. Nxd3 $11) ({Black should play} 26... Ncxe4 $17 27. Bxe4 (27. Rxe4 $2 Nxe4 28. Be1 Nxf2 $19) 27... Nxe4) 27. Bc3 $11 {[%emt 0:02:11]} Na4 {[%emt 0:02:52]} 28. f3 {[%emt 0:01:37]} Rcb7 {[%emt 0:00:58]} 29. Bc4 {[%emt 0:01:50]} Nxb2 {[%emt 0:07:00]} 30. Bb3 {[%emt 0:01:24] A strong pair of Bishops.} Rc8 $1 {[%emt 0:00:08][%cal Ob2d3]} (30... Rxb3 31. Nxb3 Nc4 32. Nd2 Nxd2+ 33. Bxd2 $18 (33. Rxd2 Nh5 $16)) 31. Ree2 {[%emt 0:01:54]} Nd3 {[%emt 0:00:30] Black is more active.} 32. Bxf7+ $2 {[%emt 0:00:30] [#] Loses the game.} (32. Nxd3 $17 {might work better.} Rxb3 33. Bb4) 32... Kxf7 $19 {[%emt 0:01:06]} 33. Nxd3 {[%emt 0:00:05]} Rbc7 {[%emt 0:00:03]} 34. Re3 $2 {[%emt 0:00:10]} (34. Ba5 Rxc2 35. Rxc2 Rxc2 36. Bxd8) 34... Nh5 {[%emt 0:02:12]} (34... Rxc3 35. Rxc3 Rxc3 36. Nxe5+ dxe5 37. Rxc3 $11) 35. Nb4 {[%emt 0:00:29]} Bg5 {[%emt 0:00:28]} 36. f4 {[%emt 0:00:56]} (36. Rd3 $142 Nf4 37. Re3) 36... exf4 {[%emt 0:00:36] Black is clearly winning.} 37. Rd3 {[%emt 0:00:14]} Ng3+ {[%emt 0:00:04]} 38. Ke1 {[%emt 0:00:15]} Nxe4 {[%emt 0:00:25]} 39. Nd5 {[%emt 0:00:02]} Rc5 {[%emt 0:00:28]} 40. Kf1 {[%emt 0:00:22]} Bf6 {[%emt 0:01:10] Weighted Error Value: White=0.31/Black=0.08 (flawless) .  Loses game:     	White=1     	---        Mistake:       	White=3     	Black=1      Inaccurate:     	White=2     	---        OK:         	White=12    	Black=16     Best:        	White=2     	Black=3      Strong:       	---       	Black=1} 0-1

[Event "CIS Master Groups 2024"]
[Site "Vasto"]
[Date "2024.04.08"]
[Round "1.2"]
[White "Brunello, Sabino"]
[Black "Yao, Stefano"]
[Result "1/2-1/2"]
[ECO "D35"]
[WhiteElo "2515"]
[BlackElo "2289"]
[Annotator "TA"]
[PlyCount "141"]
[EventDate "2024.04.07"]
[EventType "team-tourn"]
[EventCountry "ITA"]
[SourceTitle "playchess.com"]
[Source "ChessBase"]
[SourceQuality "1"]
[TimeControl "40/5400+30:900+30"]

{[%evp 53,141,32,36,31,18,29,70,0,56,59,58,23,41,22,18,0,64,58,54,59,58,63,70,76,189,182,213,42,73,0,0,0,0,0,0,0,8,16,22,0,0,0,0,0,0,0,8,8,8,0,8,8,8,8,599,596,588,8,8,8,8,8,8,8,8,8,8,8,8,8,8,8,8,8,8,8,8,8,8,8,8,8,8,8,8,8,8,8,14,0]} 1. d4 {[%emt 0:00:07]} d5 {[%emt 0:00:36]} 2. c4 {[%emt 0:00:05]} e6 {[%emt 0:00:36]} 3. Nf3 {[%emt 0:01:31]} Nf6 {[%emt 0:00:19]} 4. Nc3 {[%emt 0:00:37]} Be7 {[%emt 0:01:27]} 5. cxd5 {[%emt 0:02:35]} exd5 {[%emt 0:00:12]} 6. Bf4 {[%emt 0:01:21]} c6 {[%emt 0:03:25]} 7. e3 {[%emt 0:01:09]} Bf5 {[%emt 0:09:36]} 8. h3 {[%emt 0:12:19]} Qb6 {[%emt 0:06:29]} 9. Qc1 {[%emt 0:01:24]} h6 {[%emt 0:02:41]} 10. g4 {[%emt 0:08:54]} Bh7 {[%emt 0:04:14]} 11. g5 {[%emt 0:14:10]} hxg5 {[%emt 0:05:57]} 12. Bxg5 {[%emt 0:00:15]} Nbd7 {[%emt 0:03:58]} 13. h4 {[%emt 0:02:20]} Bf5 {[%emt 0:07:11]} 14. Bh3 {[%emt 0:00:38]} Bxh3 {[%emt 0:01:49]} 15. Rxh3 {[%emt 0:00:01]} Bb4 {[%emt 0:13:29]} 16. Bxf6 {[%emt 0:27:54]} Nxf6 {[%emt 0:00:14]} 17. a3 {[%emt 0:00:14]} Bxc3+ {[%emt 0:05:17]} 18. Qxc3 {[%emt 0:00:09]} Ne4 {[%emt 0:00:34]} 19. Qc2 {[%emt 0:00:09]} O-O-O {[%emt 0:07:29]} 20. Ne5 {[%emt 0:06:32]} Qc7 {[%emt 0:10:27]} 21. O-O-O {[%emt 0:02:49]} Rh5 {[%emt 0:03:45]} 22. Rg1 {[%emt 0:06:28]} g6 {[%emt 0:01:48]} 23. Rf3 {[%emt 0:00:28]} Rh7 {[%emt 0:01:56]} 24. Kb1 {[%emt 0:01:46]} Rdh8 {[%emt 0:00:55]} 25. Rg4 {[%emt 0:02:06]} Kb8 {[%emt 0:02:19]} 26. Rgf4 {[%emt 0:04:00]} f6 {[%emt 0:04:43]} 27. Nxg6 {[%emt 0:01:45]} Rg8 {[%emt 0:00:09]} 28. Rxe4 {[%emt 0:00:30]} dxe4 {[%emt 0:00:07]} 29. Qxe4 {[%emt 0:01:25]} Qd6 {[%emt 0:02:10]} 30. Qf5 {[%emt 0:01:06]} ({White should try} 30. Rf5 $1 $14) 30... Rh6 {[%emt 0:00:48]} (30... c5 $11) 31. h5 $14 {[%emt 0:00:28]} (31. Qxf6 $2 Qxf6 (31... Rgxg6 $2 32. Qf7 $19) 32. Rxf6 Rgxg6 (32... Rhxg6 $2 33. Rf5 $19) 33. Rf8+ Kc7 34. Rf7+ Kb6 $19) 31... a6 {[%emt 0:00:21]} 32. Rf4 {[%emt 0:00:29]} Ka8 {[%emt 0:00:43]} 33. Kc2 {[%emt 0:00:23]} Rd8 {[%emt 0:00:32]} 34. Re4 {[%emt 0:00:46]} ({Don't play} 34. Qxf6 Qxf6 35. Rxf6 Rxh5 $16) 34... Qd5 {[%emt 0:00:38]} (34... c5 $1 $11) 35. Qxd5 $14 {[%emt 0:00:08]} (35. Qxf6 $2 {is the wrong capture.} Qxe4+ 36. Kd2 Qd5 $19) 35... Rxd5 {[%emt 0:00:14]} 36. Nf4 {[%emt 0:00:18]} Rf5 {[%emt 0:00:26]} 37. Kd3 {[%emt 0:00:28]} a5 {[%emt 0:00:20]} 38. a4 {[%emt 0:00:52]} Ka7 {[%emt 0:00:22] [#]} (38... b5 $16) 39. Re6 $1 $18 {[%emt 0:00:36]} Rg5 {[%emt 0:00:36]} 40. Re7 $2 {[%emt 0:00:32]} (40. e4 $18) 40... Rg1 $14 {[%emt 0:00:42]} 41. Ne6 {[%emt 0:07:03]} (41. e4 $16) 41... Rd1+ {[%emt 0:10:59]} 42. Kc2 {[%emt 0:04:22]} Rf1 {[%emt 0:00:33]} 43. f4 {[%emt 0:01:25]} Rxh5 {[%emt 0:00:36]} 44. Nc5 {[%emt 0:01:57]} Rf2+ {[%emt 0:01:29]} 45. Kc3 {[%emt 0:01:26]} Rh3 {[%emt 0:02:28]} 46. Nxb7 {[%emt 0:01:45]} Rxe3+ $1 {[%emt 0:00:19]} ({Avoid the trap} 46... Kb6 $2 47. Nc5 $18) 47. Rxe3 {[%emt 0:00:02]} Kxb7 {[%emt 0:00:06]} 48. b4 {[%emt 0:00:22]} axb4+ {[%emt 0:00:21]} 49. Kxb4 {[%emt 0:00:16]} Rxf4 {[%emt 0:00:10]} 50. Re7+ {[%emt 0:00:16]} Kb6 {[%emt 0:02:30]} 51. a5+ {[%emt 0:00:06]} Ka6 {[%emt 0:00:04]} 52. Kc5 {[%emt 0:00:06]} Rf1 {[%emt 0:01:35]} 53. Kxc6 {[%emt 0:00:28]} Kxa5 $2 {[%emt 0:00:43][%mdl 8192]} (53... Rc1+ $11 {and Black is okay.} 54. Kd6 Kxa5) 54. d5 $18 {[%emt 0:00:51]} Rc1+ {[%emt 0:00:29]} 55. Kd6 $2 {[%emt 0:01:48]} ({Only move:} 55. Kd7 $18 {Black must now prevent Rf7.} f5 56. d6) 55... Kb6 {[%emt 0:00:25]} 56. Re8 {[%emt 0:00:56]} Kb7 {[%emt 0:00:33]} 57. Rf8 {[%emt 0:00:19]} Rd1 {[%emt 0:00:24]} 58. Rxf6 {[%emt 0:00:23]} Kc8 {[%emt 0:00:19]} 59. Rf8+ {[%emt 0:00:17]} Kb7 {[%emt 0:00:05]} 60. Rd8 {[%emt 0:00:03]} Rh1 {[%emt 0:00:05]} 61. Re8 {[%emt 0:00:04]} Rd1 {[%emt 0:00:09]} 62. Rf8 {[%emt 0:00:41]} Rd2 {[%emt 0:00:11]} 63. Ke6 {[%emt 0:00:42]} Kc7 {[%emt 0:00:09]} 64. Rf7+ {[%emt 0:00:04]} Kd8 {[%emt 0:00:11]} 65. Kd6 {[%emt 0:00:01]} Kc8 {[%emt 0:00:07]} 66. Rc7+ {[%emt 0:00:22]} Kd8 {[%emt 0:00:16]} 67. Ra7 {[%emt 0:00:03]} Kc8 $1 {[%emt 0:00:18]} 68. Ra8+ {[%emt 0:00:06]} Kb7 {[%emt 0:00:04]} 69. Rd8 {[%emt 0:00:05]} Rh2 {[%emt 0:00:11]} 70. Re8 {[%emt 0:00:11]} Rd2 {[%emt 0:00:08]} 71. Rd8 {[%emt 0:00:05]} 1/2-1/2

[Event "CIS Master Groups 2024"]
[Site "Vasto"]
[Date "2024.04.08"]
[Round "1.3"]
[White "Pitica, Silviu Valentin"]
[Black "Dvirnyy, Danyyil"]
[Result "0-1"]
[ECO "C11"]
[WhiteElo "2228"]
[BlackElo "2480"]
[Annotator "TA"]
[PlyCount "81"]
[EventDate "2024.04.07"]
[EventType "team-tourn"]
[EventCountry "ITA"]
[SourceTitle "playchess.com"]
[Source "ChessBase"]
[SourceQuality "1"]
[TimeControl "40/5400+30:900+30"]

{[%evp 16,81,21,17,18,0,0,2,-3,-9,10,1,32,36,25,16,79,47,45,18,70,0,0,0,0,-12,0,0,-3,0,-3,-7,9,0,0,0,0,-91,-91,-66,-64,-66,-74,-89,-89,-251,-271,-333,-306,-325,-316,-435,-387,-576,-473,-573,-560,-578,-528,-558,-541,-510,-466,-594,-587,-692,-698,-613]} 1. e4 {[%emt 0:00:20]} e6 {[%emt 0:01:22]} 2. d4 {[%emt 0:00:10]} d5 {[%emt 0:00:04]} 3. Nc3 {[%emt 0:00:07]} Nf6 {[%emt 0:00:03]} 4. e5 {[%emt 0:00:05]} Nfd7 {[%emt 0:00:03]} 5. f4 {[%emt 0:00:10]} c5 {[%emt 0:00:05]} 6. Nf3 {[%emt 0:00:04]} Nc6 {[%emt 0:00:18]} 7. Be3 {[%emt 0:00:06]} Be7 {[%emt 0:01:23]} 8. Qd2 {[%emt 0:01:29]} a6 {[%emt 0:00:11]} 9. dxc5 {[%emt 0:01:57]} Nxc5 {[%emt 0:00:05]} 10. O-O-O {[%emt 0:01:16]} Qa5 {[%emt 0:00:14]} 11. Kb1 {[%emt 0:01:35]} b5 {[%emt 0:02:27] The position is equal.} 12. Bd3 {[%emt 0:10:07]} Rb8 {[%emt 0:04:20]} 13. Nd4 {[%emt 0:07:14]} Qc7 {[%emt 0:02:57]} 14. Nxc6 {[%emt 0:02:28]} Qxc6 {[%emt 0:00:07]} 15. Ne2 {[%emt 0:02:19]} Ne4 {[%emt 0:08:41]} (15... Nxd3 16. Nd4 Qb7 17. Qxd3 $14) (15... Bd7 $11) 16. Bxe4 {[%emt 0:02:04]} dxe4 {[%emt 0:00:05]} 17. g4 {[%emt 0:05:25][%cal Of4f5]} O-O {[%emt 0:11:40]} (17... Bb7 $11) 18. Qc3 {[%emt 0:12:19]} ({Better is} 18. f5 $14) 18... Bb7 {[%emt 0:03:41][%cal Bc8b7,Bb7c6,Bc6d5][%mdl 32]} 19. Qxc6 {[%emt 0:01:31]} Bxc6 {[%emt 0:01:02]} 20. Rd2 {[%emt 0:07:45]} Rbd8 {[%emt 0:03:40]} 21. Rhd1 {[%emt 0:00:53]} Rxd2 {[%emt 0:05:02]} 22. Rxd2 {[%emt 0:01:50]} f6 {[%emt 0:00:09]} 23. exf6 {[%emt 0:04:32]} gxf6 {[%emt 0:00:58]} 24. Nd4 {[%emt 0:07:39]} Bd5 {[%emt 0:00:52]} 25. f5 {[%emt 0:02:17]} Kf7 {[%emt 0:00:57]} 26. c3 {[%emt 0:10:49]} (26. c4 Bxc4 (26... bxc4 27. h3 $17) 27. fxe6+ Bxe6 28. Nxe6 Kxe6 $17) (26. a4 $11) 26... Rg8 $17 {[%emt 0:03:53]} 27. h3 {[%emt 0:03:58]} h5 $1 {[%emt 0:04:27]} 28. fxe6+ {[%emt 0:00:32]} ({Reject} 28. gxh5 Rg3 29. fxe6+ Bxe6 $17) 28... Bxe6 {[%emt 0:00:12]} 29. Nxe6 {[%emt 0:00:17]} Kxe6 {[%emt 0:00:04]} 30. gxh5 $15 {[%emt 0:04:56][%mdl 4096] [#] Endgame. KRB-KRB. White does not recover from this.} (30. Rg2 $17) 30... Rg3 $1 $19 {[%emt 0:00:54][%csl LRe3,LRh3]} 31. Re2 {[%emt 0:02:25]} Rxh3 {[%emt 0:00:31]} 32. h6 {[%emt 0:00:09]} Bf8 {[%emt 0:03:06]} 33. Bd4 {[%emt 0:01:34]} f5 {[%emt 0:00:44]} ({Not} 33... Bxh6 34. Rxe4+ Kd5 35. Re2 $15) 34. Rg2 {[%emt 0:00:42]} (34. h7 {is a better defense.} Rxh7 35. Re1) 34... Rxh6 {[%emt 0:03:25] Black is clearly winning.} 35. Rg8 {[%emt 0:00:16]} Be7 {[%emt 0:00:35]} 36. Ra8 {[%emt 0:00:49]} Kd5 {[%emt 0:01:22] Threatens to win with ...f4.} 37. Ra7 {[%emt 0:00:47]} Re6 {[%emt 0:02:21]} 38. Rd7+ {[%emt 0:00:26]} Bd6 {[%emt 0:01:46]} 39. Be3 {[%emt 0:00:44]} Ke5 {[%emt 0:01:26] [#] Strongly threatening ...f4.} 40. Kc2 {[%emt 0:00:48]} f4 {[%emt 0:02:24]} 41. Bd4+ {[%emt 0:15:15] Weighted Error Value: White=0.42/Black=0.16 (very precise) .  Loses game:     	White=1     	---        Mistake:       	White=3     	Black=2      Inaccurate:     	White=3     	Black=1      OK:         	White=12    	Black=12     Best:        	---       	Black=2      Strong:       	---       	Black=1} 0-1

[Event "CIS Master Groups 2024"]
[Site "Vasto"]
[Date "2024.04.08"]
[Round "1.4"]
[White "Gilevych, Artem"]
[Black "Tripodi, Enzo"]
[Result "1-0"]
[ECO "D32"]
[WhiteElo "2417"]
[BlackElo "2152"]
[Annotator "TA"]
[PlyCount "113"]
[EventDate "2024.04.07"]
[EventType "team-tourn"]
[EventCountry "ITA"]
[SourceTitle "playchess.com"]
[Source "ChessBase"]
[SourceQuality "1"]
[TimeControl "40/5400+30:900+30"]

{[%evp 19,113,27,15,0,28,16,23,18,32,14,13,14,19,12,19,8,19,17,37,0,32,28,33,35,31,30,36,35,45,46,48,42,56,58,67,63,63,60,71,56,49,-47,66,64,90,84,94,93,150,147,237,254,239,252,247,233,239,250,242,249,242,244,418,418,397,308,326,322,433,423,563,551,601,597,651,649,685,685,685,674,963,903,1017,1018,993,982,1156,1156,1919,1698,1806,1636,29983,29984,29973,29967]} 1. Nf3 {[%emt 0:00:03]} d5 {[%emt 0:00:46]} 2. d4 {[%emt 0:01:12]} Nf6 {[%emt 0:00:12]} 3. c4 {[%emt 0:00:24]} e6 {[%emt 0:00:13]} 4. e3 {[%emt 0:02:05]} c5 {[%emt 0:07:30]} 5. Nc3 {[%emt 0:00:08]} Nc6 {[%emt 0:02:00]} 6. cxd5 {[%emt 0:00:05]} exd5 {[%emt 0:01:39]} 7. Bb5 {[%emt 0:00:06]} Bd6 {[%emt 0:03:20]} 8. O-O {[%emt 0:03:08]} O-O {[%emt 0:00:26]} 9. dxc5 {[%emt 0:00:22]} Bxc5 {[%emt 0:00:05]} 10. b3 {[%emt 0:00:08]} Bg4 {[%emt 0:03:32]} 11. h3 {[%emt 0:04:02]} Bh5 {[%emt 0:10:15]} 12. Be2 {[%emt 0:00:42][%cal Bb5e2,Be2f3,Bf3g2][%mdl 32]} a6 {[%emt 0:11:57]} 13. Bb2 {[%emt 0:00:19] White has an edge.} Qd6 {[%emt 0:01:17]} 14. Rc1 {[%emt 0:02:23]} Rad8 {[%emt 0:13:26]} 15. Nh4 {[%emt 0:03:14]} Bg6 {[%emt 0:09:00]} (15... d4 {seems wilder.} 16. Bxh5 dxc3 17. Rxc3 Qe5) 16. Nxg6 {[%emt 0:07:32]} hxg6 {[%emt 0:00:04]} 17. Bf3 {[%emt 0:17:04]} Ba7 {[%emt 0:05:01]} 18. Ne2 {[%emt 0:16:18]} Ne5 {[%emt 0:03:57]} 19. Nd4 {[%emt 0:07:57]} Bb8 {[%emt 0:01:02][%cal Oe5d3]} 20. g3 {[%emt 0:00:24]} Rfe8 {[%emt 0:04:03]} 21. Bg2 {[%emt 0:01:26] A strong pair of Bishops.} Ne4 {[%emt 0:00:40]} 22. Qe2 {[%emt 0:02:03]} Nd7 {[%emt 0:01:51]} 23. Rfd1 {[%emt 0:01:55]} Ndf6 {[%emt 0:02:14]} 24. Rc2 {[%emt 0:05:19]} Rd7 {[%emt 0:05:06]} 25. Qe1 {[%emt 0:02:56]} Rde7 {[%emt 0:01:35]} 26. Ne2 {[%emt 0:00:21]} Ba7 {[%emt 0:06:41][%cal Oe4f2]} 27. Bd4 {[%emt 0:01:54]} (27. Nf4 Nxf2 (27... Nxg3 28. Nxd5 Nxd5 29. Bxd5 $16) 28. Rxf2 (28. Qxf2 $2 Bxe3 29. Bxd5 Nxd5 $19) 28... Rxe3 $17) 27... Bxd4 {[%emt 0:01:25]} 28. Rxd4 {[%emt 0:02:38]} Qe5 {[%emt 0:01:37]} 29. Rd1 {[%emt 0:09:16]} g5 {[%emt 0:01:39]} 30. Nc3 {[%emt 0:03:25]} (30. g4 $14) 30... Qf5 {[%emt 0:02:04]} (30... Rc7 $15 31. Bxe4 Nxe4 (31... dxe4 32. Rcc1 $11) 32. Rxd5 Qe6) 31. Nxe4 $14 {[%emt 0:02:42]} dxe4 {[%emt 0:00:06] White stays focused until the end.} 32. g4 {[%emt 0:01:06]} Qb5 {[%emt 0:00:44]} 33. Rc4 {[%emt 0:01:38]} Nd7 {[%emt 0:00:42] [#]} (33... Qb6 $142) 34. Qc3 $1 $16 {[%emt 0:00:24]} Nb6 {[%emt 0:00:44]} (34... Qe5 $16 {was necessary.} 35. Bxe4 Qxc3 36. Rxc3 Ne5) 35. a4 $18 {[%emt 0:01:45]} Qe5 {[%emt 0:00:24]} 36. Qxe5 {[%emt 0:00:11]} Rxe5 {[%emt 0:00:01]} 37. Rc7 {[%emt 0:00:10]} R5e7 {[%emt 0:00:26]} 38. Rxe7 {[%emt 0:00:06]} Rxe7 {[%emt 0:00:02][%mdl 4096] Endgame. KRB-KRN} 39. Rd8+ {[%emt 0:00:24]} Kh7 {[%emt 0:00:08]} 40. Rd4 {[%emt 0:00:03]} g6 $2 {[%emt 0:01:26]} (40... Nc8 {might work better.} 41. Bxe4+ (41. Rxe4 Rd7 $18) 41... g6) 41. Rxe4 {[%emt 0:15:46]} ({Weaker is} 41. Bxe4 Nc8 42. Bf3 Rc7 $18) 41... Rd7 {[%emt 0:04:42]} 42. Rd4 {[%emt 0:00:00] aiming for a5.} Rc7 {[%emt 0:01:08]} 43. Rb4 {[%emt 0:00:00]} Rc1+ {[%emt 0:00:12]} 44. Kh2 {[%emt 0:00:00]} Nd7 {[%emt 0:00:13]} 45. Rxb7 {[%emt 0:00:00]} Rd1 {[%emt 0:00:32]} 46. b4 {[%emt 0:00:00]} Kg7 {[%emt 0:00:05]} 47. a5 {[%emt 0:00:00]} Rd2 {[%emt 0:00:31]} 48. Kg3 {[%emt 0:00:00]} Ne5 {[%emt 0:00:53]} 49. Bf1 {[%emt 0:00:00]} Kh6 {[%emt 0:00:56]} 50. Rb6 {[%emt 0:00:00]} Rd1 {[%emt 0:00:06]} 51. Kg2 {[%emt 0:00:00]} (51. Bxa6 $2 {gets mated.} Rg1+ 52. Kh2 Nf3#) 51... Kg7 {[%emt 0:02:27]} 52. Rxa6 {[%emt 0:00:00]} f5 {[%emt 0:00:10]} 53. Re6 {[%emt 0:00:00]} Rd5 {[%emt 0:01:12]} 54. gxf5 {[%emt 0:00:00]} gxf5 {[%emt 0:00:04]} 55. a6 {[%emt 0:00:00][%cal Ba5a6,Ba6a7][%mdl 32] Threatens to win with a7.} Ng6 {[%emt 0:01:44] [#]} 56. Rxg6+ $1 {[%emt 0:00:00]} Kxg6 {[%emt 0:00:04]} 57. a7 {[%emt 0:00:00] Weighted Error Value: White=0.09 (flawless) /Black=0.28 (precise) .  Mistake:       	White=1     	Black=4      Inaccurate:     	White=1     	Black=5      OK:         	White=18    	Black=8      Best:        	White=2     	Black=1} 1-0

[Event "CIS Master Groups 2024"]
[Site "Vasto"]
[Date "2024.04.08"]
[Round "1.5"]
[White "Livaic, Leon"]
[Black "Eljanov, Pavel"]
[Result "1/2-1/2"]
[ECO "E18"]
[WhiteElo "2549"]
[BlackElo "2706"]
[Annotator "TA"]
[PlyCount "76"]
[EventDate "2024.04.07"]
[EventType "team-tourn"]
[EventCountry "ITA"]
[SourceTitle "playchess.com"]
[Source "ChessBase"]
[SourceQuality "1"]
[TimeControl "40/5400+30:900+30"]

{[%evp 19,76,25,23,23,20,8,13,0,1,0,0,0,7,7,9,0,25,16,15,20,19,14,21,20,8,13,10,0,0,0,0,0,0,0,0,0,0,0,0,0,0,0,0,0,0,0,0,0,0,0,0,0,0,0,0,0,0,0,0]} 1. d4 {[%emt 0:00:09]} Nf6 {[%emt 0:00:13]} 2. c4 {[%emt 0:00:09]} e6 {[%emt 0:00:05]} 3. Nf3 {[%emt 0:00:08]} b6 {[%emt 0:00:15]} 4. g3 {[%emt 0:00:39]} Bb7 {[%emt 0:00:09]} 5. Bg2 {[%emt 0:00:08]} Be7 {[%emt 0:00:45]} 6. O-O {[%emt 0:00:29]} O-O {[%emt 0:00:05]} 7. Nc3 {[%emt 0:02:46]} Ne4 {[%emt 0:00:08]} 8. Bd2 {[%emt 0:00:37]} Bf6 {[%emt 0:00:29]} 9. Qc2 {[%emt 0:01:41]} Nxd2 {[%emt 0:00:18]} 10. Qxd2 {[%emt 0:00:09]} d6 {[%emt 0:01:52]} 11. Rfd1 {[%emt 0:04:16]} Nd7 {[%emt 0:04:42]} 12. Qc2 {[%emt 0:04:11][%cal Of3g5]} g6 {[%emt 0:02:31]} 13. h4 {[%emt 0:04:50][%cal Bh2h4,Bh4h5][%mdl 32]} Bg7 {[%emt 0:05:09]} 14. Ng5 {[%emt 0:04:57]} Bxg2 {[%emt 0:01:01]} 15. Kxg2 {[%emt 0:00:04]} Qe7 {[%emt 0:11:35]} 16. Nf3 {[%emt 0:08:34]} c6 {[%emt 0:06:21]} 17. h5 {[%emt 0:04:28]} d5 {[%emt 0:03:22]} 18. cxd5 {[%emt 0:08:14]} cxd5 {[%emt 0:00:17] The position is equal.} 19. Rac1 {[%emt 0:03:10]} a6 {[%emt 0:02:42]} 20. hxg6 {[%emt 0:08:04]} hxg6 {[%emt 0:00:09]} 21. Nb1 {[%emt 0:08:05]} b5 {[%emt 0:02:18]} 22. Qc7 {[%emt 0:01:15]} Rfd8 {[%emt 0:06:49]} 23. Rc2 {[%emt 0:03:59]} Qe8 {[%emt 0:02:42]} 24. Qf4 {[%emt 0:03:13]} Rac8 {[%emt 0:06:14]} 25. Rdc1 {[%emt 0:04:27]} Rc4 {[%emt 0:02:06]} 26. Qd2 {[%emt 0:01:43]} e5 {[%emt 0:07:15]} 27. dxe5 {[%emt 0:00:57]} Nxe5 {[%emt 0:00:08]} 28. Nxe5 {[%emt 0:00:38]} Rxc2 {[%emt 0:06:19]} 29. Rxc2 {[%emt 0:00:39]} Qxe5 {[%emt 0:00:03]} 30. Qd3 {[%emt 0:00:30]} Re8 {[%emt 0:02:52]} 31. e3 {[%emt 0:03:30]} d4 {[%emt 0:01:00]} 32. Qxd4 {[%emt 0:03:26]} Qe6 {[%emt 0:01:33]} 33. Qc5 {[%emt 0:04:27]} Qxa2 {[%emt 0:02:21]} 34. Nc3 {[%emt 0:01:05]} Qb3 {[%emt 0:00:46]} 35. Rd2 {[%emt 0:02:00]} Bxc3 {[%emt 0:04:55]} 36. Qxc3 {[%emt 0:02:49]} Qxc3 {[%emt 0:00:06]} 37. bxc3 {[%emt 0:00:02]} Kf8 {[%emt 0:00:10]} 38. Rd7 {[%emt 0:03:06]} Rc8 {[%emt 0:02:24] An even fight not without its subleties.   Weighted Error Value: White=0.02 (flawless) /Black=0.01 (flawless) .  OK:         	White=12    	Black=8      Best:        	---       	Black=1} 1/2-1/2